bitfinex/quotes_ETHUSD_20251031
["timestamp","ask_amount","ask_price","bid_price","bid_amount"]
[1761915327364,15.228978,3849.0,3848.9,0.4956]
[1761915327566,8.159184,3849.0,3848.9,0.9683]
[1761915327734,10.957334,3849.0,3848.9,0.9683]
[1761915328471,10.957334,3849.0,3848.9,0.4956]
[1761915329038,12.77598819,3849.0,3848.9,0.4956]
[1761915329238,13.32590163,3849.0,3848.9,0.4956]
[1761915329829,10.957334,3849.0,3848.9,0.4956]
[1761915330261,11.50743016,3849.0,3848.9,0.4956]
[1761915330749,11.50743016,3849.0,3848.9,0.9683]
[1761915331148,10.94438516,3849.0,3848.9,0.9683]
[1761915331548,12.76303935,3849.0,3848.9,0.4956]
[1761915331755,10.94438516,3849.0,3848.9,0.4956]
[1761915333041,10.94438516,3849.0,3848.9,0.9683]
[1761915333042,8.70928016,3849.0,3848.9,0.9683]
[1761915333843,7.30960016,3849.0,3848.9,0.9683]
[1761915334043,6.759504,3849.0,3848.9,0.9683]
[1761915334285,6.90565346,3849.0,3848.9,2.78700144]
[1761915334456,6.90565346,3849.0,3848.9,3.24758497]
[1761915334652,0.001,3849.1,3849.0,1.81865419]
[1761915334962,0.001,3849.1,3849.0,2.78495419]
[1761915335150,0.001,3849.1,3849.0,0.9663]
[1761915336994,0.001,3849.1,3849.0,2.78495419]
[1761915337283,0.001,3849.1,3849.0,0.9663]
[1761915340183,0.001,3849.1,3849.0,2.78495419]
[1761915340480,0.001,3849.1,3849.0,3.06364961]
[1761915341440,0.001,3849.1,3849.0,0.77229542]
[1761915341639,0.001,3849.1,3849.0,0.9663]
[1761915341841,0.406504,3849.1,3849.0,0.9663]
[1761915342062,0.001,3849.1,3849.0,0.9663]
[1761915342372,0.406504,3849.1,3849.0,0.9663]
[1761915342579,0.001,3849.1,3849.0,0.9663]
[1761915343790,0.001,3849.1,3849.0,0.4936]
[1761915343992,0.03347512,3849.1,3849.0,0.4936]
[1761915344491,0.001,3849.1,3849.0,0.4936]
[1761915344663,0.001,3849.1,3849.0,3.01638155]
[1761915346149,0.001,3849.1,3849.0,1.19772736]
[1761915346585,0.001,3849.1,3849.0,0.9663]
[1761915346782,0.001,3849.1,3849.0,2.78495419]
[1761915347962,0.001,3849.1,3849.0,0.4936]
[1761915348884,0.03347512,3849.1,3849.0,0.4936]
[1761915349087,0.001,3849.1,3849.0,0.002]
[1761915349286,0.03347512,3849.1,3849.0,0.002]
[1761915351083,0.43897912,3849.1,3849.0,0.002]
[1761915351588,0.92187912,3849.1,3849.0,0.002]
[1761915352497,1.91724765,3849.1,3849.0,0.002]
[1761915352670,18.31231165,3849.1,3849.0,0.002]
[1761915352878,7.90454453,3849.1,3849.0,0.002]
[1761915353096,7.46087155,3849.1,3849.0,0.002]
[1761915356003,13.81487155,3849.1,3849.0,0.002]
[1761915357410,15.63347849,3849.1,3849.0,0.002]
[1761915357629,13.81487155,3849.1,3849.0,0.002]
[1761915358229,12.31259955,3849.1,3849.0,0.4534]
[1761915358725,12.79549955,3849.1,3849.0,0.002]
[1761915358928,12.31259955,3849.1,3849.0,0.002]
[1761915359234,11.31179955,3849.1,3849.0,0.002]
[1761915359428,7.31139955,3849.1,3849.0,0.002]
[1761915359635,7.31139955,3849.1,3849.0,0.4534]
[1761915360611,7.31139955,3849.1,3849.0,0.9132]
[1761915361196,7.31139955,3849.1,3849.0,0.4534]
[1761915361397,7.79429955,3849.1,3849.0,0.002]
[1761915362040,7.31139955,3849.1,3849.0,0.002]
[1761915362602,8.28779955,3849.1,3849.0,0.002]
[1761915362796,9.92122113,3849.1,3849.0,0.002]
[1761915363132,22.47313613,3849.1,3849.0,0.002]
[1761915363438,21.78650738,3849.1,3849.0,0.002]
[1761915363610,33.62383819,3849.0,3848.9,0.002]
[1761915363809,33.62383819,3849.0,3848.6,0.002]
[1761915363810,2.22429995,3848.7,3848.6,0.002]
[1761915364018,35.67235595,3848.7,3848.6,0.002]
[1761915364236,32.58724767,3848.7,3848.6,0.002]
[1761915364836,4.00732104,3848.7,3848.6,0.002]
[1761915365035,10.19560158,3848.7,3848.6,0.002]
[1761915365216,8.83782714,3848.7,3848.6,0.002]
[1761915365415,7.21734814,3848.7,3848.6,0.002]
[1761915365650,6.85488855,3848.7,3848.6,0.002]
[1761915366015,7.06479367,3848.7,3848.6,0.4534]
[1761915366425,5.25960967,3848.7,3848.6,0.4534]
[1761915366746,0.95719955,3848.7,3848.6,0.002]
[1761915367047,0.405504,3848.7,3848.6,0.002]
[1761915367216,0.95719955,3848.7,3848.6,0.002]
[1761915368246,0.405504,3848.7,3848.6,2.27224321]
[1761915368419,0.405504,3848.7,3848.6,3.00544753]
[1761915368744,0.888404,3848.7,3848.6,0.002]
[1761915368943,0.405504,3848.7,3848.6,0.4534]
[1761915369251,0.405504,3848.7,3848.6,0.002]
[1761915369844,0.888404,3848.7,3848.6,0.002]
[1761915370021,1.381904,3848.7,3848.6,0.002]
[1761915370220,2.16720365,3848.7,3848.6,0.002]
[1761915370428,2.7188992,3848.7,3848.6,0.002]
[1761915371235,2.2253992,3848.7,3848.6,0.002]
[1761915371445,14.78966904,3848.7,3848.6,0.002]
[1761915371655,10.09686155,3848.7,3848.6,0.002]
[1761915372022,9.44337655,3848.7,3848.6,0.002]
[1761915372223,3.52030155,3848.7,3848.6,0.002]
[1761915372538,1.47257804,3848.7,3848.6,0.002]
[1761915372722,0.92088249,3848.7,3848.6,0.002]
[1761915372926,1.47257804,3848.7,3848.6,0.002]
[1761915373154,0.92088249,3848.7,3848.6,0.002]
[1761915373329,1.47257804,3848.7,3848.6,0.002]
[1761915373524,8.16021977,3848.7,3848.6,0.002]
[1761915373858,7.79409955,3848.7,3848.6,0.002]
[1761915374369,22.27668555,3848.7,3848.6,0.002]
[1761915374863,38.1974645,3848.7,3848.6,0.002]
[1761915375068,34.2620945,3848.7,3848.6,0.002]
[1761915375643,27.9080945,3848.7,3848.6,0.002]
[1761915375845,29.1003925,3848.7,3848.6,0.002]
[1761915376763,29.1003935,3848.7,3848.6,0.002]
[1761915377064,11.87764755,3848.7,3848.6,0.002]
[1761915377264,4.98747555,3848.7,3848.6,0.4534]
[1761915377474,1.98385404,3848.7,3848.6,0.4534]
[1761915377660,0.58417404,3848.7,3848.6,0.4534]
[1761915377842,0.03247849,3848.7,3848.6,0.4534]
[1761915378365,1.47637804,3848.7,3848.6,0.002]
[1761915378551,1.95937804,3848.7,3848.6,0.002]
[1761915379054,1.55387404,3848.7,3848.6,0.002]
[1761915379254,1.47637804,3848.7,3848.6,0.002]
[1761915381244,0.98967804,3848.7,3848.6,0.002]
[1761915381448,1.48617804,3848.7,3848.6,0.002]
[1761915382465,2.77238321,3848.7,3848.6,0.002]
[1761915382667,3.46302772,3848.7,3848.6,0.002]
[1761915382874,2.66612255,3848.7,3848.6,0.002]
[1761915384160,2.66532255,3848.7,3848.6,0.002]
[1761915384355,2.17602255,3848.7,3848.6,0.002]
[1761915384756,1.67952255,3848.7,3848.6,0.4747]
[1761915385081,0.98887804,3848.7,3848.6,0.4747]
[1761915385265,0.98887804,3848.7,3848.6,0.002]
[1761915385659,1.48537804,3848.7,3848.6,0.002]
[1761915387160,2.17602255,3848.7,3848.6,0.002]
[1761915387864,1.67952255,3848.7,3848.6,0.002]
[1761915388993,2.17602255,3848.7,3848.6,0.002]
[1761915389189,1.67952255,3848.7,3848.6,0.002]
[1761915390148,1.67952255,3848.7,3848.6,0.4747]
[1761915390588,2.17602255,3848.7,3848.6,0.002]
[1761915391095,2.66532255,3848.7,3848.6,0.002]
[1761915391295,8.32867804,3848.7,3848.6,0.002]
[1761915391595,8.29699955,3848.7,3848.6,0.002]
[1761915393954,36.4761265,3848.7,3848.6,0.002]
[1761915394151,36.06068769,3848.7,3848.6,0.002]
[1761915394355,35.08419469,3848.7,3848.6,0.002]
[1761915394586,34.9625245,3848.7,3848.6,0.002]
[1761915394886,39.5139304,3848.7,3848.6,0.002]
[1761915395189,35.9199814,3848.7,3848.6,0.002]
[1761915395768,26.45258421,3848.6,3848.5,0.002]
[1761915395989,26.34947755,3848.6,3848.5,0.002]
[1761915396187,31.22120848,3848.6,3848.5,0.002]
[1761915396566,33.04005169,3848.6,3848.5,0.002]
[1761915396773,33.47763069,3848.6,3848.5,0.002]
[1761915397110,27.08329753,3848.6,3848.5,0.002]
[1761915397265,12.41184255,3848.6,3848.5,0.002]
[1761915397467,13.33541218,3848.6,3848.5,0.002]
[1761915397898,11.43387955,3848.6,3848.5,0.4747]
[1761915398286,10.75293355,3848.6,3848.5,0.4747]
[1761915398598,10.34742955,3848.6,3848.5,0.4747]
[1761915398799,8.30537555,3848.6,3848.5,0.9489]
[1761915399100,8.00389494,3848.6,3848.5,0.9489]
[1761915399404,7.31119955,3848.6,3848.5,0.9489]
[1761915399569,7.31119955,3848.6,3848.5,0.4747]
[1761915399915,8.00400481,3848.6,3848.5,0.4747]
[1761915400112,8.00400481,3848.6,3848.5,0.9489]
[1761915400767,7.31119955,3848.6,3848.5,0.9489]
[1761915401171,33.52866225,3848.6,3848.5,0.002]
[1761915401366,25.59380313,3848.6,3848.5,0.002]
[1761915401576,24.6702335,3848.6,3848.5,0.002]
[1761915401769,26.0556957,3848.6,3848.5,0.002]
[1761915402012,29.54196443,3848.6,3848.5,0.002]
[1761915402306,29.415231,3848.3,3848.2,0.002]
[1761915402511,37.20231436,3848.3,3848.2,0.002]
[1761915402723,37.69161436,3848.3,3848.2,0.002]
[1761915403009,0.405504,3847.3,3846.5,0.1416]
[1761915403306,1.81941373,3847.4,3846.5,0.1416]
[1761915403307,6.35272164,3847.2,3846.5,0.1416]
[1761915403506,6.32023048,3847.2,3846.5,0.1416]
[1761915403671,9.33354403,3847.2,3846.5,0.1416]
[1761915403875,32.65596098,3847.2,3846.5,0.1416]
[1761915404076,24.27647598,3847.2,3846.5,0.1416]
[1761915404311,25.98904907,3847.2,3846.1,0.01]
[1761915404610,25.98902435,3847.2,3846.2,0.4742]
[1761915404996,11.73845535,3847.2,3846.2,0.4742]
[1761915405184,27.90139161,3847.2,3846.2,0.4742]
[1761915405393,23.98488862,3847.2,3846.2,0.4742]
[1761915405588,25.11355603,3847.2,3846.2,2.29416182]
[1761915405777,25.11355603,3847.2,3846.2,0.4742]
[1761915405778,18.42232001,3847.2,3846.2,0.4742]
[1761915405978,18.42232001,3847.2,3846.1,0.01]
[1761915405979,9.86120048,3847.2,3846.4,1.81987726]
[1761915406310,11.68070557,3847.2,3846.4,0.4742]
[1761915406814,9.86120048,3847.2,3846.4,2.29408166]
[1761915407001,16.96599848,3847.2,3846.4,2.29408166]
[1761915407326,13.91377264,3847.2,3846.4,0.4742]
[1761915407482,14.40307264,3847.2,3846.4,0.4742]
[1761915407916,12.58356755,3847.2,3846.4,0.4742]
[1761915408215,2.35687955,3847.2,3846.6,0.4742]
[1761915408433,2.33417516,3847.2,3846.6,0.4742]
[1761915408720,10.12992871,3847.2,3846.6,0.4742]
[1761915408891,8.41378055,3847.2,3846.6,0.4742]
[1761915409116,2.35687955,3847.2,3846.6,0.4742]
[1761915409432,5.42017616,3847.2,3846.6,0.4742]
[1761915409632,5.93938055,3847.2,3846.6,0.4742]
[1761915409935,0.95639955,3847.2,3847.1,0.5029]
[1761915410123,0.92729516,3847.2,3847.1,0.01]
[1761915410330,1.47899071,3847.2,3847.1,0.01]
[1761915410534,3.7636958,3847.2,3847.1,0.01]
[1761915411027,0.98889071,3847.2,3847.1,0.01]
[1761915411341,0.43719516,3847.2,3847.1,0.5029]
[1761915411544,0.58418586,3847.3,3847.1,0.6445]
[1761915411841,0.98967864,3847.3,3847.1,0.1516]
[1761915412044,0.405504,3847.2,3847.1,0.01]
[1761915412239,0.03249031,3847.3,3847.1,0.01]
[1761915412442,0.405504,3847.5,3847.1,0.01]
[1761915412443,0.895604,3847.2,3847.1,0.01]
[1761915412646,0.92809516,3847.2,3847.1,0.01]
[1761915413139,5.35811916,3847.2,3847.1,0.01]
[1761915413354,5.325628,3847.2,3847.1,0.01]
[1761915414530,6.725308,3847.2,3847.1,0.01]
[1761915414728,8.5029734,3847.2,3847.1,0.01]
[1761915415039,8.0377734,3847.2,3847.1,0.01]
[1761915415908,7.27674473,3847.2,3847.1,0.01]
[1761915416929,9.09624982,3847.2,3847.1,0.01]
[1761915417141,9.56144982,3847.2,3847.1,0.01]
[1761915417663,13.63074473,3847.2,3847.1,0.01]
[1761915418157,12.94645673,3847.2,3847.1,0.01]
[1761915418341,9.20072073,3847.2,3847.1,0.01]
[1761915418541,12.53082073,3847.2,3847.1,0.01]
[1761915419560,14.81552582,3847.2,3847.1,0.01]
[1761915419864,14.35032582,3847.2,3847.1,0.012]
[1761915420065,14.35132582,3847.2,3847.1,0.012]
[1761915420229,14.35159238,3847.2,3847.1,0.012]
[1761915420631,41.48669238,3847.2,3847.1,0.012]
[1761915424131,42.49030339,3847.2,3847.1,0.012]
[1761915424338,41.80067428,3847.2,3847.1,0.012]
[1761915425058,39.38263428,3847.2,3847.1,0.012]
[1761915425664,40.82406828,3847.2,3847.1,0.012]
[1761915425979,40.82406828,3847.2,3846.7,0.002]
[1761915425980,2.22519829,3846.8,3846.7,0.002]
[1761915426140,40.50529424,3846.8,3846.7,0.002]
[1761915426468,41.55584207,3846.8,3846.7,0.002]
[1761915427734,47.90984207,3846.8,3846.7,0.002]
[1761915428855,41.55584207,3846.8,3846.7,0.002]
[1761915429364,41.02320615,3846.8,3846.7,0.002]
[1761915429568,2.22548216,3846.2,3846.1,0.01]
[1761915429768,40.28838832,3846.2,3846.1,0.01]
[1761915429971,41.5833739,3846.2,3846.1,0.01]
[1761915430370,41.5833739,3846.2,3844.8,1.82063313]
[1761915430371,30.0,3845.1,3842.3,1.82178952]
[1761915430556,0.405504,3844.5,3844.1,0.5004]
[1761915430756,0.405504,3844.8,3844.4,0.4764]
[1761915430962,0.405504,3844.6,3844.4,0.4764]
[1761915431269,0.405504,3844.6,3844.1,0.5004]
[1761915431270,0.405504,3844.4,3844.1,0.5004]
[1761915431471,0.43801628,3844.7,3844.1,0.5004]
[1761915431675,0.405504,3844.6,3844.1,0.74671043]
[1761915431971,0.405504,3844.4,3844.2,0.4904]
[1761915432176,0.405504,3844.5,3844.2,0.4904]
[1761915432356,0.405504,3844.5,3844.4,0.4764]
[1761915432557,0.405504,3844.9,3844.4,0.4764]
[1761915432763,0.405504,3844.7,3844.4,0.4764]
[1761915432957,0.03251144,3844.8,3844.4,0.4764]
[1761915432958,0.405504,3844.5,3844.4,0.4764]
[1761915433159,0.03251059,3844.9,3844.4,0.4764]
[1761915433378,0.03251059,3844.9,3844.5,0.4764]
[1761915434673,0.03171059,3844.9,3844.5,0.4764]
[1761915434852,0.405504,3844.8,3844.5,0.4764]
[1761915435044,0.405504,3844.9,3844.5,0.4764]
[1761915435245,0.03171144,3844.8,3844.5,0.4764]
[1761915435707,0.405504,3844.9,3844.5,0.4764]
[1761915435848,0.03171144,3844.8,3844.5,0.4764]
[1761915436187,0.405504,3844.7,3844.5,0.4764]
[1761915436402,0.405504,3844.9,3844.5,0.4764]
[1761915436682,1.0134959,3845.1,3844.5,0.4764]
[1761915436683,0.405504,3844.7,3844.5,0.4764]
[1761915437044,0.03170975,3845.0,3844.6,0.9668]
[1761915437248,0.03170806,3845.2,3844.9,0.4764]
[1761915437446,0.03170552,3845.5,3845.1,0.62]
[1761915437847,0.43720952,3845.5,3845.4,0.4764]
[1761915438274,0.03170552,3845.5,3845.4,0.4764]
[1761915438543,0.03170468,3845.6,3845.4,0.9668]
[1761915438773,0.58339804,3845.9,3845.6,0.4764]
[1761915438988,4.270675,3845.8,3845.6,0.4764]
[1761915439190,0.98890373,3845.7,3845.6,0.4764]
[1761915439389,0.535104,3845.6,3845.1,0.1436]
[1761915439597,0.405504,3845.4,3845.1,0.634]
[1761915439745,0.405504,3845.2,3845.1,0.634]
[1761915440096,0.5516959,3845.6,3845.1,0.634]
[1761915440097,0.405504,3845.4,3845.1,0.634]
[1761915440276,0.405504,3845.2,3845.1,0.6094]
[1761915440580,0.405504,3845.6,3845.1,2.42988385]
[1761915440740,0.405504,3845.4,3845.2,0.4658]
[1761915440941,0.405504,3845.6,3845.2,0.75697838]
[1761915441184,0.03170468,3845.6,3845.2,0.75697838]
[1761915441343,0.43720868,3845.6,3845.5,0.4559]
[1761915441550,0.405504,3845.6,3845.3,0.4984]
[1761915441744,0.405504,3845.2,3845.1,0.1436]
[1761915442181,0.405504,3845.4,3845.1,0.5995]
[1761915442677,0.03170637,3845.4,3845.3,0.4559]
[1761915442974,0.43720783,3845.7,3845.1,0.1436]
[1761915443179,1.42523676,3845.7,3845.1,0.1436]
[1761915443379,6.688972,3845.6,3845.1,0.1436]
[1761915443567,0.405504,3845.4,3845.1,0.1436]
[1761915443770,0.405504,3845.2,3845.1,0.1436]
[1761915443955,0.405504,3845.4,3845.1,0.1436]
[1761915444150,0.405504,3845.2,3845.1,0.1436]
[1761915444659,0.58340142,3845.5,3845.1,0.1436]
[1761915444660,0.405504,3845.4,3845.1,0.5995]
[1761915444976,0.405504,3845.2,3845.1,0.5995]
[1761915445175,0.43721037,3845.4,3845.1,0.5995]
[1761915445554,0.405504,3845.0,3844.7,0.1436]
[1761915445777,0.405504,3845.0,3844.7,1.96428519]
[1761915445946,0.405504,3845.0,3844.9,0.4559]
[1761915447250,0.405504,3844.9,3844.7,0.1436]
[1761915447582,0.16131059,3844.9,3844.7,0.1436]
[1761915447787,0.43721459,3844.9,3844.8,0.4559]
[1761915448083,0.405504,3844.6,3844.5,0.002]
[1761915448390,0.405504,3844.6,3844.5,0.5004]
[1761915448583,0.9571999,3845.1,3844.5,2.77707563]
[1761915448884,0.405504,3844.9,3844.6,0.4559]
[1761915449086,0.405504,3844.7,3844.6,0.4559]
[1761915449385,0.535104,3844.6,3844.5,0.5004]
[1761915449887,0.535104,3844.6,3844.5,2.77708293]
[1761915450508,0.535104,3844.6,3844.5,3.23687717]
[1761915451814,0.1296,3844.6,3844.5,3.23687717]
[1761915452034,0.5516959,3845.4,3844.5,1.41609424]
[1761915452179,0.95959929,3845.8,3845.3,0.5995]
[1761915452378,0.40790339,3845.8,3845.7,2.27611478]
[1761915452577,0.405504,3846.2,3845.7,0.4559]
[1761915452786,0.03249961,3846.2,3846.0,0.4559]
[1761915453014,0.5516959,3846.4,3846.1,0.5993]
[1761915453177,0.5516959,3846.4,3846.1,0.1434]
[1761915453379,0.5516959,3846.5,3846.3,0.4559]
[1761915453612,0.5516959,3846.5,3846.2,0.4984]
[1761915453816,0.03249707,3846.5,3846.4,0.4559]
[1761915454804,0.43800107,3846.5,3846.4,0.4559]
[1761915456813,0.535104,3846.4,3846.1,0.1434]
[1761915456995,0.405504,3846.4,3846.1,0.6418]
[1761915457316,0.405504,3846.4,3846.3,0.4559]
[1761915457910,0.03249707,3846.5,3846.3,0.4559]
[1761915458115,0.03249707,3846.5,3846.4,0.4559]
[1761915458316,0.405504,3846.6,3846.4,0.4559]
[1761915458516,0.01,3846.7,3846.5,0.9543]
[1761915458716,0.01,3846.7,3846.6,0.4559]
[1761915459737,0.44719938,3846.7,3846.6,0.4559]
[1761915459919,1.84687938,3846.7,3846.6,0.4559]
[1761915460245,0.405504,3846.4,3846.1,0.1434]
[1761915460538,0.405504,3846.2,3846.1,0.1434]
[1761915460702,0.1296,3846.1,3845.5,2.31866923]
[1761915460900,0.1296,3845.8,3845.5,2.31866923]
[1761915461104,0.1296,3845.8,3845.6,2.31865794]
[1761915461411,0.1296,3845.8,3845.7,2.50798057]
[1761915461725,0.1296,3845.8,3845.7,3.00638057]
[1761915462032,0.1296,3845.8,3845.7,1.18616579]
[1761915462434,0.1296,3845.8,3845.7,3.00638057]
[1761915465235,0.1296,3845.8,3845.7,1.18616579]
[1761915465444,0.1296,3845.8,3845.7,3.00638057]
[1761915466165,0.1296,3845.8,3845.7,1.18616579]
[1761915466553,0.1296,3845.8,3845.7,0.9543]
[1761915466872,0.1296,3845.8,3845.7,2.77451478]
[1761915467545,0.1296,3845.8,3845.7,0.9543]
[1761915467942,0.1296,3845.8,3845.7,2.77451478]
[1761915468139,0.1296,3845.8,3845.7,0.9543]
[1761915468471,0.1296,3845.8,3845.7,0.4559]
[1761915470331,0.1296,3845.8,3845.7,2.27611478]
[1761915470671,0.1296,3845.8,3845.7,2.76421478]
[1761915471027,0.1296,3845.8,3845.7,0.4559]
[1761915471531,0.1296,3845.8,3845.7,0.944]
[1761915474661,0.1296,3845.8,3845.7,2.76421478]
[1761915474862,0.1296,3845.8,3845.7,3.04063626]
[1761915475600,0.1296,3845.8,3845.7,1.22042148]
[1761915475954,0.1296,3846.0,3845.9,1.82008355]
[1761915476372,0.1296,3846.0,3845.9,2.80128355]
[1761915476576,0.1296,3846.0,3845.9,3.29107553]
[1761915480500,6.354,3846.6,3846.3,1.81992861]
[1761915480685,6.354,3846.6,3846.5,0.6365]
[1761915480885,6.90755509,3846.6,3846.5,0.6365]
[1761915481101,6.90755509,3846.6,3846.5,1.1246]
[1761915482018,6.90755509,3846.6,3846.2,0.1434]
[1761915482201,0.1296,3846.3,3846.2,0.1434]
[1761915482400,0.1296,3846.3,3845.9,1.82007868]
[1761915482608,0.1296,3846.3,3846.2,0.4931]
[1761915484911,0.1288,3846.3,3846.2,0.4931]
[1761915485414,0.5889,3846.3,3845.6,0.002]
[1761915485723,0.3288,3846.2,3845.6,0.002]
[1761915485924,0.1296,3846.0,3845.6,0.002]
[1761915486224,0.1296,3846.0,3845.8,1.82014996]
[1761915486516,0.1296,3846.0,3845.9,0.230265]
[1761915486725,0.5911,3846.0,3845.6,0.002]
[1761915486926,0.1296,3845.7,3845.6,1.82221805]
[1761915487124,0.457,3845.7,3845.6,0.002]
[1761915487786,1.87025909,3845.7,3845.6,0.002]
[1761915488206,1.316704,3845.7,3845.6,0.002]
[1761915488863,3.69047387,3845.7,3845.6,0.002]
[1761915489206,1.87025909,3845.7,3845.6,0.002]
[1761915489410,1.316704,3845.7,3845.6,0.002]
[1761915489612,1.87025909,3845.7,3845.6,0.002]
[1761915490137,1.90276292,3845.7,3845.6,0.002]
[1761915490338,3.7229777,3845.7,3845.6,0.002]
[1761915491650,1.90276292,3845.7,3845.6,0.002]
[1761915491948,3.7229777,3845.7,3845.6,0.002]
[1761915494423,1.90276292,3845.7,3845.6,0.002]
[1761915495645,0.71565892,3845.7,3845.6,0.002]
[1761915495857,0.4615,3845.7,3845.6,0.002]
[1761915496336,0.9157,3845.7,3845.6,0.002]
[1761915498159,1.321204,3845.7,3845.6,0.002]
[1761915498316,3.63160359,3845.7,3845.6,0.002]
[1761915498511,4.18515868,3845.7,3845.6,0.002]
[1761915499344,2.3649439,3845.7,3845.6,0.002]
[1761915500009,1.81138881,3845.7,3845.6,0.002]
[1761915500217,1.321204,3845.7,3845.6,0.002]
[1761915500606,5.12075387,3845.7,3845.6,0.002]
[1761915500811,3.72107387,3845.7,3845.6,0.002]
[1761915501238,1.90085909,3845.7,3845.6,0.002]
[1761915501627,2.49861588,3846.3,3845.6,1.0889]
[1761915501814,0.5531321,3846.2,3845.6,0.6047]
[1761915502149,0.001,3846.3,3846.2,0.4842]
[1761915502938,0.001,3846.3,3845.7,2.36864608]
[1761915503143,0.001,3846.3,3845.8,0.4593]
[1761915503337,0.001,3846.3,3845.9,1.82009638]
[1761915503550,0.001,3846.3,3845.8,0.4593]
[1761915503814,0.001,3846.3,3845.8,2.27942473]
[1761915504032,0.001,3846.3,3845.9,1.8201044]
[1761915505455,0.001,3846.3,3845.6,0.1454]
[1761915505658,0.405504,3846.2,3845.6,0.1454]
[1761915505815,0.405504,3846.2,3845.7,1.82017787]
[1761915506248,0.405504,3846.2,3845.6,0.1454]
[1761915506450,0.885804,3846.2,3845.6,1.96565885]
[1761915506647,0.885804,3846.2,3845.6,2.5301623]
[1761915506847,0.885804,3846.2,3845.7,1.82019545]
[1761915507351,0.885804,3846.2,3845.8,1.82016195]
[1761915507763,0.885804,3846.2,3845.6,0.70990345]
[1761915507963,0.885804,3846.2,3845.6,0.1454]
[1761915508461,0.885804,3846.2,3845.7,1.82020261]
[1761915508669,0.885804,3846.2,3845.6,0.1454]
[1761915509447,0.885804,3846.2,3845.6,1.96565448]
[1761915509630,0.885804,3846.2,3845.7,1.82020051]
[1761915510351,0.885004,3846.2,3845.6,0.1454]
[1761915510660,0.6845,3845.7,3845.6,0.002]
[1761915510834,1.1648,3845.7,3845.6,0.002]
[1761915511955,0.4941,3845.7,3845.6,0.002]
[1761915512120,0.95856541,3846.0,3845.6,0.4862]
[1761915512316,0.95856541,3846.0,3845.7,0.4842]
[1761915513020,0.535104,3845.7,3845.6,0.002]
[1761915513858,0.1296,3845.7,3845.6,2.30646211]
[1761915514162,0.1296,3845.7,3845.6,0.9455]
[1761915514762,1.029204,3845.7,3845.6,0.002]
[1761915515080,1.58241395,3845.7,3845.6,0.002]
[1761915515225,0.535104,3845.7,3845.6,0.4862]
[1761915515420,0.535104,3845.7,3845.6,0.9455]
[1761915516638,0.55320995,3846.1,3845.6,0.9455]
[1761915516943,0.001,3846.3,3845.9,0.4842]
[1761915517141,0.001,3846.3,3846.0,0.4842]
[1761915517667,0.001,3846.3,3846.2,0.4842]
[1761915518280,0.001,3846.3,3845.8,1.82012625]
[1761915518571,0.001,3846.3,3845.9,0.27400451]
[1761915518773,0.001,3846.3,3845.9,2.09411419]
[1761915519058,0.001,3846.3,3845.9,0.27400451]
[1761915519829,0.001,3846.3,3845.9,2.2794087]
[1761915520026,0.001,3846.3,3846.2,0.4842]
[1761915520266,0.001,3846.3,3846.2,2.44767816]
[1761915520466,0.001,3846.3,3846.2,0.6277]
[1761915521536,0.001,3846.3,3846.2,2.44767816]
[1761915521737,0.001,3846.3,3846.2,2.92038762]
[1761915523102,0.001,3846.3,3846.2,3.37968762]
[1761915524500,0.001,3846.3,3846.2,2.43618762]
[1761915524676,0.405504,3846.2,3845.6,0.002]
[1761915524871,0.405504,3846.0,3845.6,0.002]
[1761915525074,0.405504,3846.1,3845.9,0.4842]
[1761915525899,0.405504,3845.9,3845.6,0.002]
[1761915526277,0.405504,3846.0,3845.6,0.002]
[1761915527305,0.405504,3846.1,3845.6,0.002]
[1761915527985,0.885804,3846.1,3845.6,0.002]
[1761915528590,0.405504,3846.1,3845.6,0.002]
[1761915528795,0.405504,3846.2,3845.6,0.4613]
[1761915529307,0.43800361,3846.2,3845.6,0.4613]
[1761915530006,0.99153764,3846.2,3845.6,0.002]
[1761915530211,1.45873764,3846.2,3845.6,0.002]
[1761915530706,21.25823749,3845.7,3845.6,0.002]
[1761915530882,36.49978252,3845.7,3845.6,0.002]
[1761915531084,33.94790939,3845.7,3845.6,0.002]
[1761915531290,32.77615236,3845.7,3845.6,0.002]
[1761915531484,31.98421736,3845.7,3845.6,0.002]
[1761915531689,32.47751096,3845.7,3845.6,0.002]
[1761915531905,33.55061819,3845.7,3845.6,0.002]
[1761915532596,32.85884935,3845.7,3845.6,0.002]
[1761915532916,42.28722771,3845.7,3845.6,0.002]
[1761915533210,41.96338586,3845.7,3845.6,0.002]
[1761915533410,43.11359213,3845.7,3845.6,0.002]
[1761915533610,42.19256562,3845.7,3845.6,0.002]
[1761915534177,43.11313022,3845.7,3845.6,0.002]
[1761915534585,34.25108122,3845.7,3845.6,0.002]
[1761915534991,27.88230622,3845.7,3845.6,0.002]
[1761915535212,24.04353545,3845.7,3845.6,0.002]
[1761915535379,24.04273545,3845.7,3845.6,0.002]
[1761915536093,26.92441645,3845.7,3845.6,0.002]
[1761915536294,26.71635145,3845.7,3845.6,0.002]
[1761915537117,34.22724845,3845.7,3845.6,0.002]
[1761915537416,25.63968145,3845.7,3845.6,0.002]
[1761915538095,26.11580445,3845.7,3845.6,0.002]
[1761915538697,26.44061368,3845.7,3845.6,0.002]
[1761915538899,27.36117828,3845.7,3845.6,0.002]
[1761915539197,37.59603968,3845.7,3845.6,0.002]
[1761915539400,36.48039668,3845.7,3845.6,0.002]
[1761915539719,36.15558745,3845.7,3845.6,0.002]